[Event "Early-Titled-Tuesday-Blitz-February-27-2024"]
[Site "Chess.com"]
[Date "2024.02.27"]
[Round "9"]
[White "Rogarcia1"]
[Black "LangesNasenhaar"]
[Result "1-0"]
[WhiteElo "2509"]
[BlackElo "2400"]
[TimeControl "180+1"]
[EndTime "9:45:42 PST"]
[Termination "Rogarcia1 won by resignation"]

1. e4 {[%clk 0:03:00.9]} 1... g6 {[%clk 0:02:59.8]} 2. d4 {[%clk 0:03:00.8]}
2... Bg7 {[%clk 0:03:00.4]} 3. Nc3 {[%clk 0:03:01.2]} 3... c6 {[%clk 0:03:01.1]}
4. Be3 {[%clk 0:02:59.6]} 4... d5 {[%clk 0:03:01.2]} 5. e5 {[%clk 0:02:59.4]}
5... f6 {[%clk 0:03:01.2]} 6. f4 {[%clk 0:02:59.4]} 6... Nh6 {[%clk 0:03:01.9]}
7. Nf3 {[%clk 0:02:58]} 7... Bg4 {[%clk 0:03:01.2]} 8. h3 {[%clk 0:02:57.4]}
8... Bxf3 {[%clk 0:03:00.6]} 9. Qxf3 {[%clk 0:02:58.2]} 9... O-O {[%clk
0:02:59.1]} 10. exf6 {[%clk 0:02:51.2]} 10... exf6 {[%clk 0:02:47.1]} 11. g4
{[%clk 0:02:50]} 11... f5 {[%clk 0:02:37.8]} 12. O-O-O {[%clk 0:02:49.5]} 12...
Nd7 {[%clk 0:02:30.8]} 13. Bd3 {[%clk 0:02:48.6]} 13... b5 {[%clk 0:02:20.9]}
14. Rdg1 {[%clk 0:02:37.7]} 14... Qe7 {[%clk 0:02:09.4]} 15. Kb1 {[%clk
0:02:35.6]} 15... b4 {[%clk 0:02:06.1]} 16. Na4 {[%clk 0:02:32.7]} 16... Rae8
{[%clk 0:02:00.4]} 17. Re1 {[%clk 0:02:32.2]} 17... Qd6 {[%clk 0:01:53.6]} 18.
g5 {[%clk 0:02:09.8]} 18... Nf7 {[%clk 0:01:52]} 19. h4 {[%clk 0:02:10.3]} 19...
Nd8 {[%clk 0:01:26.8]} 20. h5 {[%clk 0:02:08.2]} 20... Re7 {[%clk 0:01:20.5]}
21. hxg6 {[%clk 0:02:01.8]} 21... hxg6 {[%clk 0:01:20.2]} 22. Qf2 {[%clk
0:01:56]} 22... Rfe8 {[%clk 0:01:17.4]} 23. Bd2 {[%clk 0:01:56.1]} 23... Rxe1+
{[%clk 0:01:09.8]} 24. Rxe1 {[%clk 0:01:56]} 24... Rxe1+ {[%clk 0:01:03.8]} 25.
Bxe1 {[%clk 0:01:56.9]} 25... Ne6 {[%clk 0:01:00.2]} 26. c3 {[%clk 0:01:54.4]}
26... Qxf4 {[%clk 0:00:56.7]} 27. Qxf4 {[%clk 0:01:50.4]} 27... Nxf4 {[%clk
0:00:56.3]} 28. Ba6 {[%clk 0:01:51.1]} 28... Ne6 {[%clk 0:00:50.8]} 29. Bc8
{[%clk 0:01:47.8]} 29... Ndf8 {[%clk 0:00:44.3]} 30. Nc5 {[%clk 0:01:35.4]}
30... bxc3 {[%clk 0:00:37.2]} 31. bxc3 {[%clk 0:01:34.5]} 31... Kf7 {[%clk
0:00:35.2]} 32. Nd7 {[%clk 0:01:20.8]} 32... Nxd7 {[%clk 0:00:31.8]} 33. Bxd7
{[%clk 0:01:20.6]} 33... Nd8 {[%clk 0:00:32.4]} 34. Bg3 {[%clk 0:01:17.9]} 34...
Ke7 {[%clk 0:00:29.6]} 35. Bc8 {[%clk 0:01:18.3]} 35... Ne6 {[%clk 0:00:26.4]}
36. Bb8 {[%clk 0:01:16]} 36... a5 {[%clk 0:00:24.4]} 37. Kc2 {[%clk 0:01:13.8]}
37... Nxg5 {[%clk 0:00:21.1]} 38. Bc7 {[%clk 0:01:12]} 38... a4 {[%clk
0:00:20.8]} 39. Kd3 {[%clk 0:01:03.4]} 39... Ne6 {[%clk 0:00:20.7]} 40. Ba5
{[%clk 0:00:57.4]} 40... f4 {[%clk 0:00:18.8]} 41. Bb4+ {[%clk 0:00:57.6]} 41...
Kf7 {[%clk 0:00:17.9]} 42. Bd7 {[%clk 0:00:57.9]} 42... Nd8 {[%clk 0:00:17.3]}
43. Bd6 {[%clk 0:00:57.3]} 43... g5 {[%clk 0:00:16]} 44. Ke2 {[%clk 0:00:57.1]}
44... Bf8 {[%clk 0:00:15.7]} 45. Be5 {[%clk 0:00:54.9]} 45... Ke7 {[%clk
0:00:13.1]} 46. Bf5 {[%clk 0:00:51.1]} 46... Ne6 {[%clk 0:00:12.1]} 47. Kf3
{[%clk 0:00:49.2]} 47... Bg7 {[%clk 0:00:08.4]} 48. Bxg7 {[%clk 0:00:37.8]}
48... Nxg7 {[%clk 0:00:07.9]} 49. Bc2 {[%clk 0:00:38.5]} 49... Nf5 {[%clk
0:00:05.1]} 50. Bxf5 {[%clk 0:00:38.1]} 50... a3 {[%clk 0:00:04.4]} 51. Kg4
{[%clk 0:00:37.8]} 51... Kf6 {[%clk 0:00:04.7]} 52. Bd3 {[%clk 0:00:38.1]} 52...
c5 {[%clk 0:00:03.7]} 53. dxc5 {[%clk 0:00:37.9]} 53... Ke5 {[%clk 0:00:04.1]}
54. Kxg5 {[%clk 0:00:36.1]} 54... f3 {[%clk 0:00:04.2]} 55. Kg4 {[%clk 0:00:35]}
55... f2 {[%clk 0:00:04.6]} 56. Kf3 {[%clk 0:00:35.2]} 56... d4 {[%clk
0:00:04.8]} 57. cxd4+ {[%clk 0:00:33.5]} 57... Kxd4 {[%clk 0:00:05.1]} 58. c6
{[%clk 0:00:33.8]} 58... Kxd3 {[%clk 0:00:05.5]} 59. Kxf2 {[%clk 0:00:33.6]}
59... Kc2 {[%clk 0:00:05.9]} 60. c7 {[%clk 0:00:33.8]} 60... Kb2 {[%clk
0:00:06.8]} 61. c8=Q {[%clk 0:00:33.4]} 61... Kxa2 {[%clk 0:00:07.7]} 62. Qc1
{[%clk 0:00:33.4]} 1-0

[Event "Early-Titled-Tuesday-Blitz-February-27-2024"]
[Site "Chess.com"]
[Date "2024.02.27"]
[Round "9"]
[White "DumbKing75"]
[Black "GMKrikor"]
[Result "1-0"]
[WhiteElo "2655"]
[BlackElo "2894"]
[TimeControl "180+1"]
[EndTime "9:45:56 PST"]
[Termination "DumbKing75 won on time"]

1. e4 {[%clk 0:03:00.9]} 1... c5 {[%clk 0:02:59.7]} 2. Nf3 {[%clk 0:03:00.9]}
2... Nc6 {[%clk 0:03:00.1]} 3. Bb5 {[%clk 0:03:00.3]} 3... Nf6 {[%clk
0:03:00.3]} 4. Nc3 {[%clk 0:02:58.2]} 4... Qc7 {[%clk 0:03:00.5]} 5. O-O {[%clk
0:02:56.2]} 5... Nd4 {[%clk 0:03:00.6]} 6. Re1 {[%clk 0:01:38.6]} 6... a6 {[%clk
0:02:57.9]} 7. Bf1 {[%clk 0:01:37.8]} 7... e5 {[%clk 0:02:58.2]} 8. d3 {[%clk
0:01:22.3]} 8... d6 {[%clk 0:02:49.7]} 9. Bg5 {[%clk 0:01:13.1]} 9... Be7 {[%clk
0:02:49.7]} 10. Bxf6 {[%clk 0:01:10.3]} 10... Bxf6 {[%clk 0:02:50.6]} 11. Nd5
{[%clk 0:01:10.9]} 11... Qd8 {[%clk 0:02:51]} 12. c3 {[%clk 0:01:08.6]} 12...
Nc6 {[%clk 0:02:46.8]} 13. Nd2 {[%clk 0:01:02.3]} 13... O-O {[%clk 0:02:45.1]}
14. Nc4 {[%clk 0:01:00.5]} 14... Rb8 {[%clk 0:02:38.7]} 15. Nce3 {[%clk
0:00:54.6]} 15... b5 {[%clk 0:02:36]} 16. g3 {[%clk 0:00:51.5]} 16... g6 {[%clk
0:02:35.3]} 17. Nxf6+ {[%clk 0:00:50.4]} 17... Qxf6 {[%clk 0:02:35]} 18. Nd5
{[%clk 0:00:50.6]} 18... Qd8 {[%clk 0:02:35.2]} 19. a4 {[%clk 0:00:48.5]} 19...
b4 {[%clk 0:02:35]} 20. Qd2 {[%clk 0:00:35.9]} 20... Kg7 {[%clk 0:02:31.7]} 21.
h4 {[%clk 0:00:35.3]} 21... h5 {[%clk 0:02:17.1]} 22. Kh2 {[%clk 0:00:33.4]}
22... a5 {[%clk 0:02:15.6]} 23. Bh3 {[%clk 0:00:31.3]} 23... Be6 {[%clk
0:02:15.4]} 24. Ne3 {[%clk 0:00:30.3]} 24... Qf6 {[%clk 0:01:36.5]} 25. Rh1
{[%clk 0:00:21.6]} 25... Ne7 {[%clk 0:01:24.3]} 26. Kg2 {[%clk 0:00:20]} 26...
d5 {[%clk 0:01:19.5]} 27. Raf1 {[%clk 0:00:09.7]} 27... Rfd8 {[%clk 0:01:07.8]}
28. Qe2 {[%clk 0:00:09.2]} 28... d4 {[%clk 0:01:03.4]} 29. cxd4 {[%clk
0:00:10.1]} 29... cxd4 {[%clk 0:01:01.5]} 30. Bxe6 {[%clk 0:00:10.6]} 30... dxe3
{[%clk 0:00:50]} 31. Bc4 {[%clk 0:00:10.9]} 31... Rf8 {[%clk 0:00:29.2]} 32.
fxe3 {[%clk 0:00:11]} 32... Qd6 {[%clk 0:00:22.9]} 33. Rf3 {[%clk 0:00:07.9]}
33... Nc8 {[%clk 0:00:19.4]} 34. Rhf1 {[%clk 0:00:05.7]} 34... f6 {[%clk
0:00:20]} 35. b3 {[%clk 0:00:02.7]} 35... Nb6 {[%clk 0:00:20.5]} 36. Bb5 {[%clk
0:00:03.2]} 36... Rbc8 {[%clk 0:00:20.2]} 37. Bc4 {[%clk 0:00:03.4]} 37... Nd7
{[%clk 0:00:19.5]} 38. Qb2 {[%clk 0:00:03.4]} 38... Nc5 {[%clk 0:00:18.8]} 39.
d4 {[%clk 0:00:02.5]} 39... Nxe4 {[%clk 0:00:19.2]} 40. dxe5 {[%clk 0:00:02.8]}
40... Qd2+ {[%clk 0:00:08.7]} 41. Qxd2 {[%clk 0:00:02.9]} 41... Nxd2 {[%clk
0:00:09.6]} 42. exf6+ {[%clk 0:00:03.6]} 42... Kh6 {[%clk 0:00:10.3]} 43. Rf4
{[%clk 0:00:03.5]} 43... Nxf1 {[%clk 0:00:07.6]} 44. Kxf1 {[%clk 0:00:04.4]}
44... Rc5 {[%clk 0:00:07.7]} 45. e4 {[%clk 0:00:04.4]} 45... g5 {[%clk
0:00:08.1]} 46. hxg5+ {[%clk 0:00:05]} 46... Kxg5 {[%clk 0:00:09]} 47. f7 {[%clk
0:00:04.6]} 47... Re5 {[%clk 0:00:06]} 48. Kf2 {[%clk 0:00:05]} 48... Rc5 {[%clk
0:00:03]} 49. Kf3 {[%clk 0:00:05.3]} 49... Rxc4 {[%clk 0:00:02.8]} 50. bxc4
{[%clk 0:00:05.6]} 50... b3 {[%clk 0:00:03.5]} 51. Rf5+ {[%clk 0:00:06.3]} 51...
Kg6 {[%clk 0:00:03.3]} 52. Ke3 {[%clk 0:00:06.9]} 1-0

[Event "Early-Titled-Tuesday-Blitz-February-27-2024"]
[Site "Chess.com"]
[Date "2024.02.27"]
[Round "9"]
[White "Fandorine"]
[Black "averageFM"]
[Result "0-1"]
[WhiteElo "2875"]
[BlackElo "2648"]
[TimeControl "180+1"]
[EndTime "9:45:59 PST"]
[Termination "averageFM won by resignation"]

1. e4 {[%clk 0:03:00.9]} 1... e5 {[%clk 0:02:59.5]} 2. Nf3 {[%clk 0:03:00.7]}
2... Nc6 {[%clk 0:02:59.6]} 3. Bc4 {[%clk 0:03:01.2]} 3... Nf6 {[%clk
0:02:58.8]} 4. d3 {[%clk 0:03:01.7]} 4... d5 {[%clk 0:02:59]} 5. exd5 {[%clk
0:03:01.3]} 5... Nxd5 {[%clk 0:02:59.9]} 6. O-O {[%clk 0:03:01.1]} 6... Bc5
{[%clk 0:02:59.7]} 7. h3 {[%clk 0:02:56.4]} 7... O-O {[%clk 0:02:57.2]} 8. Re1
{[%clk 0:02:54.8]} 8... f6 {[%clk 0:02:52.3]} 9. a4 {[%clk 0:02:49.6]} 9... Be6
{[%clk 0:02:46.8]} 10. a5 {[%clk 0:02:46.9]} 10... a6 {[%clk 0:02:42.9]} 11. Nc3
{[%clk 0:02:44.9]} 11... Bf7 {[%clk 0:02:37.3]} 12. Bd2 {[%clk 0:02:29]} 12...
Nd4 {[%clk 0:02:25.7]} 13. Ne4 {[%clk 0:02:23.1]} 13... Nxf3+ {[%clk 0:02:03.1]}
14. Qxf3 {[%clk 0:02:22.7]} 14... Be7 {[%clk 0:02:03.6]} 15. Ng3 {[%clk
0:02:16]} 15... c6 {[%clk 0:02:01.8]} 16. Nf5 {[%clk 0:02:15.3]} 16... Kh8
{[%clk 0:01:36]} 17. Qg3 {[%clk 0:02:14.7]} 17... g6 {[%clk 0:01:25.5]} 18. Nxe7
{[%clk 0:02:04.3]} 18... Nxe7 {[%clk 0:01:23.3]} 19. Bxf7 {[%clk 0:01:42.9]}
19... Nf5 {[%clk 0:01:22.6]} 20. Qg4 {[%clk 0:01:39.5]} 20... Rxf7 {[%clk
0:01:22.3]} 21. Bc3 {[%clk 0:01:38.4]} 21... Qd5 {[%clk 0:01:15.8]} 22. f4
{[%clk 0:01:33.1]} 22... h5 {[%clk 0:00:52.5]} 23. Qf3 {[%clk 0:00:51.7]} 23...
Qxf3 {[%clk 0:00:51.3]} 24. gxf3 {[%clk 0:00:52.6]} 24... exf4 {[%clk
0:00:51.6]} 25. Re6 {[%clk 0:00:51.3]} 25... Kg7 {[%clk 0:00:50.7]} 26. Kf2
{[%clk 0:00:51.6]} 26... Ne3 {[%clk 0:00:33.9]} 27. h4 {[%clk 0:00:43.1]} 27...
Nxc2 {[%clk 0:00:29.6]} 28. Ra4 {[%clk 0:00:43.3]} 28... Ne3 {[%clk 0:00:28]}
29. Rxf4 {[%clk 0:00:35.9]} 29... Nd5 {[%clk 0:00:27.7]} 30. Rfe4 {[%clk
0:00:32.1]} 30... Nxc3 {[%clk 0:00:24.4]} 31. bxc3 {[%clk 0:00:32]} 31... Rd8
{[%clk 0:00:25]} 32. Ke3 {[%clk 0:00:24.4]} 32... Rd5 {[%clk 0:00:24.1]} 33. Ra4
{[%clk 0:00:24.6]} 33... g5 {[%clk 0:00:20.1]} 34. Re8 {[%clk 0:00:15.5]} 34...
gxh4 {[%clk 0:00:15.6]} 35. Rxh4 {[%clk 0:00:12.7]} 35... Rxa5 {[%clk
0:00:15.3]} 36. d4 {[%clk 0:00:11.4]} 36... Rg5 {[%clk 0:00:07.6]} 37. Rh1
{[%clk 0:00:09.1]} 37... a5 {[%clk 0:00:07.6]} 38. Ra8 {[%clk 0:00:08.4]} 38...
Re7+ {[%clk 0:00:06]} 39. Kf4 {[%clk 0:00:09.1]} 39... Rb5 {[%clk 0:00:05.8]}
40. Rg1+ {[%clk 0:00:06.7]} 40... Kf7 {[%clk 0:00:06.1]} 41. Rag8 {[%clk
0:00:05.2]} 41... Ke6 {[%clk 0:00:05.3]} 42. Rd8 {[%clk 0:00:03.7]} 42... Rf5+
{[%clk 0:00:04.6]} 43. Ke3 {[%clk 0:00:02.7]} 43... Kf7+ {[%clk 0:00:04.8]} 44.
Kf2 {[%clk 0:00:03.5]} 44... Rg5 {[%clk 0:00:05]} 45. Rh1 {[%clk 0:00:03.2]}
45... a4 {[%clk 0:00:04.7]} 46. Rh4 {[%clk 0:00:02.6]} 46... b5 {[%clk
0:00:03.7]} 47. Ra8 {[%clk 0:00:03]} 47... Ke6 {[%clk 0:00:03]} 48. Re4+ {[%clk
0:00:03.3]} 48... Kd6 {[%clk 0:00:02.9]} 49. Rf4 {[%clk 0:00:02]} 49... Kd5
{[%clk 0:00:03.2]} 50. Rd8+ {[%clk 0:00:02]} 50... Kc4 {[%clk 0:00:03.4]} 51.
d5+ {[%clk 0:00:02.6]} 51... Kxc3 {[%clk 0:00:03.2]} 52. dxc6 {[%clk 0:00:03]}
52... a3 {[%clk 0:00:03.4]} 53. Rd7 {[%clk 0:00:02.8]} 53... Rxd7 {[%clk
0:00:03.3]} 54. cxd7 {[%clk 0:00:03.1]} 54... Rd5 {[%clk 0:00:04.1]} 55. Rf5
{[%clk 0:00:03.4]} 55... Rxd7 {[%clk 0:00:03.1]} 56. Rxb5 {[%clk 0:00:04.3]}
56... a2 {[%clk 0:00:03.5]} 0-1

[Event "Early-Titled-Tuesday-Blitz-February-27-2024"]
[Site "Chess.com"]
[Date "2024.02.27"]
[Round "9"]
[White "PavelChernomordik"]
[Black "tylityli"]
[Result "0-1"]
[WhiteElo "2387"]
[BlackElo "2299"]
[TimeControl "180+1"]
[EndTime "9:46:08 PST"]
[Termination "tylityli won on time"]

1. e4 {[%clk 0:03:00.9]} 1... e5 {[%clk 0:02:59.4]} 2. Nf3 {[%clk 0:03:00.5]}
2... Nc6 {[%clk 0:02:58.9]} 3. Bb5 {[%clk 0:03:00.1]} 3... a6 {[%clk 0:02:58.9]}
4. Ba4 {[%clk 0:02:59.4]} 4... Nf6 {[%clk 0:02:58.7]} 5. Nc3 {[%clk 0:02:58.3]}
5... d6 {[%clk 0:02:51.4]} 6. h3 {[%clk 0:02:56.8]} 6... g6 {[%clk 0:02:47.4]}
7. O-O {[%clk 0:02:37.3]} 7... Bg7 {[%clk 0:02:46.6]} 8. d4 {[%clk 0:02:29]}
8... b5 {[%clk 0:02:16.1]} 9. dxe5 {[%clk 0:02:27.9]} 9... Nxe5 {[%clk
0:01:59.5]} 10. Bb3 {[%clk 0:02:13.2]} 10... O-O {[%clk 0:01:57.9]} 11. Bf4
{[%clk 0:02:10.8]} 11... Ned7 {[%clk 0:01:51.1]} 12. Re1 {[%clk 0:02:04.8]}
12... Bb7 {[%clk 0:01:46.8]} 13. a3 {[%clk 0:01:41.9]} 13... Nc5 {[%clk
0:01:42.5]} 14. e5 {[%clk 0:01:29.2]} 14... dxe5 {[%clk 0:01:27.4]} 15. Bxe5
{[%clk 0:01:29]} 15... Nxb3 {[%clk 0:01:22.2]} 16. cxb3 {[%clk 0:01:26.2]} 16...
Qxd1 {[%clk 0:01:14]} 17. Rexd1 {[%clk 0:01:25.5]} 17... Bxf3 {[%clk 0:01:08.2]}
18. gxf3 {[%clk 0:01:25.1]} 18... c5 {[%clk 0:01:03.8]} 19. Rac1 {[%clk
0:01:22.6]} 19... Rfd8 {[%clk 0:00:55.9]} 20. Kf1 {[%clk 0:01:10.8]} 20... Nh5
{[%clk 0:00:49.4]} 21. Bxg7 {[%clk 0:01:09.4]} 21... Nxg7 {[%clk 0:00:49.5]} 22.
Ne4 {[%clk 0:01:08]} 22... Rxd1+ {[%clk 0:00:44.2]} 23. Rxd1 {[%clk 0:01:07.8]}
23... Ne6 {[%clk 0:00:43.2]} 24. Rd7 {[%clk 0:01:03.2]} 24... Nd4 {[%clk
0:00:24.5]} 25. Nxc5 {[%clk 0:01:00.7]} 25... Nxf3 {[%clk 0:00:23]} 26. b4
{[%clk 0:00:46]} 26... a5 {[%clk 0:00:21.9]} 27. Rb7 {[%clk 0:00:37.5]} 27...
axb4 {[%clk 0:00:21.5]} 28. axb4 {[%clk 0:00:37.2]} 28... Ra2 {[%clk 0:00:13.5]}
29. Nd3 {[%clk 0:00:35.7]} 29... Nd4 {[%clk 0:00:11.7]} 30. Rd7 {[%clk
0:00:32.4]} 30... Ne6 {[%clk 0:00:09.1]} 31. Rd5 {[%clk 0:00:31.1]} 31... Ra1+
{[%clk 0:00:06.5]} 32. Kg2 {[%clk 0:00:29.6]} 32... Rd1 {[%clk 0:00:05.7]} 33.
Kf3 {[%clk 0:00:24.1]} 33... Kg7 {[%clk 0:00:05]} 34. Ke2 {[%clk 0:00:22.3]}
34... Rh1 {[%clk 0:00:03.9]} 35. Rxb5 {[%clk 0:00:19.8]} 35... Nd4+ {[%clk
0:00:03.5]} 36. Ke3 {[%clk 0:00:18.9]} 36... Nxb5 {[%clk 0:00:04.4]} 37. Ke4
{[%clk 0:00:17.4]} 37... Rxh3 {[%clk 0:00:04.1]} 38. f3 {[%clk 0:00:13.6]} 38...
Rh4+ {[%clk 0:00:04]} 39. f4 {[%clk 0:00:13.4]} 39... Nd6+ {[%clk 0:00:03.6]}
40. Kd5 {[%clk 0:00:13.1]} 40... Nb7 {[%clk 0:00:03]} 41. b5 {[%clk 0:00:11]}
41... Rh5+ {[%clk 0:00:02.6]} 42. Kc6 {[%clk 0:00:10.9]} 42... Na5+ {[%clk
0:00:02.9]} 43. Kb6 {[%clk 0:00:10.2]} 43... Nc4+ {[%clk 0:00:02.9]} 44. Ka6
{[%clk 0:00:09.9]} 44... Rf5 {[%clk 0:00:02.4]} 45. b6 {[%clk 0:00:09.1]} 45...
Nxb6 {[%clk 0:00:02.5]} 46. Kxb6 {[%clk 0:00:08.8]} 46... h5 {[%clk 0:00:03.4]}
47. b4 {[%clk 0:00:06.1]} 47... h4 {[%clk 0:00:03.9]} 48. b5 {[%clk 0:00:03.6]}
48... h3 {[%clk 0:00:04.4]} 49. Nf2 {[%clk 0:00:03.8]} 49... h2 {[%clk
0:00:04.6]} 50. Kc6 {[%clk 0:00:02.5]} 50... Rxf4 {[%clk 0:00:05.1]} 51. Nh1
{[%clk 0:00:02.7]} 51... Rf1 {[%clk 0:00:04.9]} 52. Ng3 {[%clk 0:00:01.9]} 52...
h1=Q+ {[%clk 0:00:05.4]} 53. Nxh1 {[%clk 0:00:01.8]} 53... Rxh1 {[%clk
0:00:05.7]} 54. b6 {[%clk 0:00:02.7]} 54... Rb1 {[%clk 0:00:06.1]} 55. b7 {[%clk
0:00:02.3]} 55... g5 {[%clk 0:00:06.8]} 0-1

[Event "Early-Titled-Tuesday-Blitz-February-27-2024"]
[Site "Chess.com"]
[Date "2024.02.27"]
[Round "9"]
[White "Natalya_Buksa"]
[Black "Gabrielian_Artur"]
[Result "1-0"]
[WhiteElo "2624"]
[BlackElo "2775"]
[TimeControl "180+1"]
[EndTime "9:46:11 PST"]
[Termination "Natalya_Buksa won on time"]

1. d4 {[%clk 0:03:00.9]} 1... Nf6 {[%clk 0:02:57.1]} 2. Nc3 {[%clk 0:03:01.5]}
2... d5 {[%clk 0:02:55.9]} 3. Bf4 {[%clk 0:03:02]} 3... e6 {[%clk 0:02:56.3]} 4.
Nb5 {[%clk 0:03:01.9]} 4... Na6 {[%clk 0:02:56.6]} 5. e3 {[%clk 0:03:02.6]} 5...
Be7 {[%clk 0:02:57]} 6. Nf3 {[%clk 0:03:02.8]} 6... O-O {[%clk 0:02:56.8]} 7.
Bd3 {[%clk 0:03:03.5]} 7... c6 {[%clk 0:02:56.9]} 8. Nc3 {[%clk 0:03:03.8]} 8...
Nb4 {[%clk 0:02:50]} 9. O-O {[%clk 0:03:03.9]} 9... c5 {[%clk 0:02:49.9]} 10.
Be2 {[%clk 0:02:58.3]} 10... cxd4 {[%clk 0:02:46.1]} 11. exd4 {[%clk 0:02:58.2]}
11... Bd7 {[%clk 0:02:45.9]} 12. a3 {[%clk 0:02:51.4]} 12... Nc6 {[%clk
0:02:45.6]} 13. Bd3 {[%clk 0:02:51]} 13... Rc8 {[%clk 0:02:41.7]} 14. Re1 {[%clk
0:02:50.8]} 14... Qb6 {[%clk 0:02:39.3]} 15. Rb1 {[%clk 0:02:48.4]} 15... Rfd8
{[%clk 0:02:24.5]} 16. h3 {[%clk 0:02:36.4]} 16... a6 {[%clk 0:02:21.1]} 17. g4
{[%clk 0:02:14.1]} 17... Be8 {[%clk 0:02:18.9]} 18. g5 {[%clk 0:01:53.8]} 18...
Ne4 {[%clk 0:02:17.2]} 19. Nxe4 {[%clk 0:01:41.5]} 19... dxe4 {[%clk 0:02:17.3]}
20. Rxe4 {[%clk 0:01:42]} 20... g6 {[%clk 0:01:59.9]} 21. Be3 {[%clk 0:01:35.4]}
21... Qc7 {[%clk 0:01:54.4]} 22. c3 {[%clk 0:01:31.3]} 22... Rd5 {[%clk
0:01:48.6]} 23. h4 {[%clk 0:01:29.9]} 23... b5 {[%clk 0:01:43.9]} 24. Qe2 {[%clk
0:01:29.1]} 24... Bd6 {[%clk 0:01:38.3]} 25. Rg4 {[%clk 0:01:23.6]} 25... Ne7
{[%clk 0:01:36.1]} 26. Be4 {[%clk 0:01:17.2]} 26... Bc6 {[%clk 0:01:33.9]} 27.
Qc2 {[%clk 0:01:00.9]} 27... Nf5 {[%clk 0:01:33.5]} 28. h5 {[%clk 0:01:01.1]}
28... Kg7 {[%clk 0:01:30.6]} 29. h6+ {[%clk 0:00:54.7]} 29... Kg8 {[%clk
0:01:30.4]} 30. Bd2 {[%clk 0:00:50.4]} 30... Bb7 {[%clk 0:01:28.4]} 31. Qd3
{[%clk 0:00:48.7]} 31... a5 {[%clk 0:01:02.9]} 32. b3 {[%clk 0:00:48.6]} 32...
Bxa3 {[%clk 0:00:57.6]} 33. c4 {[%clk 0:00:46.3]} 33... Rdd8 {[%clk 0:00:55.9]}
34. Bxb7 {[%clk 0:00:33.7]} 34... Qxb7 {[%clk 0:00:55.7]} 35. Bxa5 {[%clk
0:00:34.2]} 35... Rd6 {[%clk 0:00:49.6]} 36. b4 {[%clk 0:00:34.4]} 36... bxc4
{[%clk 0:00:47.8]} 37. Qxa3 {[%clk 0:00:34.3]} 37... c3 {[%clk 0:00:48.4]} 38.
Rf4 {[%clk 0:00:27.3]} 38... e5 {[%clk 0:00:47.3]} 39. dxe5 {[%clk 0:00:19.3]}
39... Rd3 {[%clk 0:00:47.4]} 40. Ne1 {[%clk 0:00:13.1]} 40... Rh3 {[%clk
0:00:44.4]} 41. Ng2 {[%clk 0:00:13.7]} 41... c2 {[%clk 0:00:41.6]} 42. Qc1
{[%clk 0:00:10.6]} 42... cxb1=Q {[%clk 0:00:41.2]} 43. Qxb1 {[%clk 0:00:11.5]}
43... Rhc3 {[%clk 0:00:39.4]} 44. Kh2 {[%clk 0:00:11.1]} 44... Rc1 {[%clk
0:00:36.8]} 45. Qd3 {[%clk 0:00:11.3]} 45... R1c3 {[%clk 0:00:27]} 46. Qd2
{[%clk 0:00:11.3]} 46... Qc6 {[%clk 0:00:24.7]} 47. b5 {[%clk 0:00:10.9]} 47...
Qc5 {[%clk 0:00:12.4]} 48. Bxc3 {[%clk 0:00:11]} 48... Qxc3 {[%clk 0:00:12.1]}
49. Qxc3 {[%clk 0:00:11.3]} 49... Rxc3 {[%clk 0:00:12.4]} 50. Rb4 {[%clk
0:00:11.5]} 50... Rc8 {[%clk 0:00:08.2]} 51. b6 {[%clk 0:00:12.1]} 51... Kf8
{[%clk 0:00:07.9]} 52. b7 {[%clk 0:00:12]} 52... Rb8 {[%clk 0:00:08.2]} 53. Nf4
{[%clk 0:00:12.6]} 53... Ke7 {[%clk 0:00:08]} 54. Nd5+ {[%clk 0:00:12.6]} 54...
Kd7 {[%clk 0:00:07.7]} 55. Nf6+ {[%clk 0:00:12.8]} 55... Kc6 {[%clk 0:00:08.2]}
56. Nxh7 {[%clk 0:00:13]} 56... Kc5 {[%clk 0:00:05.8]} 57. Rb1 {[%clk
0:00:12.5]} 57... Nd4 {[%clk 0:00:05.2]} 58. Kg3 {[%clk 0:00:10.3]} 58... Kd5
{[%clk 0:00:05]} 59. f4 {[%clk 0:00:10.5]} 59... Ke4 {[%clk 0:00:03.6]} 60. Nf6+
{[%clk 0:00:10.8]} 60... Kf5 {[%clk 0:00:04.1]} 61. h7 {[%clk 0:00:11.1]} 61...
Ne2+ {[%clk 0:00:04]} 62. Kf3 {[%clk 0:00:11.4]} 62... Nxf4 {[%clk 0:00:03.8]}
63. Ng8 {[%clk 0:00:12]} 1-0